bitfinex/quotes_BTCUSD_20241103
["timestamp","ask_amount","ask_price","bid_price","bid_amount"]
[1730620192156,0.96985974,68463.0,68462.0,0.000819]
[1730620192368,0.97185974,68463.0,68462.0,0.000819]
[1730620193000,0.97385974,68463.0,68462.0,0.000819]
[1730620193186,0.99472906,68463.0,68462.0,0.000819]
[1730620194877,1.05995025,68463.0,68462.0,0.000819]
[1730620195090,0.99472906,68463.0,68462.0,0.000819]
[1730620195300,1.05995119,68463.0,68462.0,0.000819]
[1730620195899,1.12517306,68463.0,68462.0,0.000819]
[1730620196586,1.12518609,68463.0,68462.0,0.000819]
[1730620196798,1.19042183,68463.0,68462.0,0.000819]
[1730620197220,1.19042241,68463.0,68462.0,0.000819]
[1730620197456,1.12518609,68463.0,68462.0,0.000819]
[1730620197866,1.12518609,68463.0,68462.0,0.000369]
[1730620198267,1.19042613,68463.0,68462.0,0.000369]
[1730620198469,1.12518609,68463.0,68462.0,0.000369]
[1730620198677,1.27925168,68463.0,68462.0,0.000369]
[1730620198881,1.12518609,68463.0,68462.0,0.000369]
[1730620199082,1.27927938,68463.0,68462.0,0.000369]
[1730620199330,1.12518609,68463.0,68462.0,0.000369]
[1730620199547,1.14887348,68463.0,68462.0,0.000369]
[1730620199756,1.23585975,68463.0,68462.0,0.000369]
[1730620200408,1.23749775,68463.0,68462.0,0.000369]
[1730620200710,1.15051148,68463.0,68462.0,0.000369]
[1730620200961,1.23740887,68463.0,68462.0,0.000369]
[1730620201171,0.99636706,68463.0,68462.0,0.000369]
[1730620201373,1.15058793,68463.0,68462.0,0.000369]
[1730620201930,1.22771861,68463.0,68462.0,0.000369]
[1730620202148,1.33645145,68463.0,68462.0,0.000369]
[1730620203651,1.22771861,68463.0,68462.0,0.000369]
[1730620205127,1.22571861,68463.0,68462.0,0.000369]
[1730620205545,1.22771861,68463.0,68462.0,0.000369]
[1730620205973,1.22971861,68463.0,68462.0,0.000369]
[1730620206182,1.38051565,68463.0,68462.0,1e-06]
[1730620206426,0.158794,68449.0,68442.0,0.21902447]
[1730620206641,0.2464579,68449.0,68442.0,0.21902447]
[1730620206859,0.669864,68449.0,68442.0,0.21902447]
[1730620207583,0.146817,68438.0,68436.0,0.000819]
[1730620207794,0.664887,68438.0,68437.0,0.00734582]
[1730620208658,0.664887,68438.0,68437.0,0.00734271]
[1730620208882,0.81071274,68438.0,68437.0,0.00734271]
[1730620209793,0.82271274,68438.0,68437.0,0.001819]
[1730620210037,0.81671274,68438.0,68437.0,0.000819]
[1730620210273,0.82171274,68438.0,68437.0,0.001819]
[1730620210876,0.83071274,68438.0,68437.0,0.001819]
[1730620211481,0.82471274,68438.0,68437.0,0.000819]
[1730620211937,0.83071274,68438.0,68437.0,0.001819]
[1730620212156,0.82471274,68438.0,68437.0,0.000819]
[1730620212371,0.81571274,68438.0,68437.0,0.000819]
[1730620212597,0.83271274,68438.0,68437.0,0.001819]
[1730620213208,0.82271274,68438.0,68437.0,0.001819]
[1730620213422,0.82971274,68438.0,68437.0,0.000819]
[1730620214815,0.83471274,68438.0,68437.0,0.000819]
[1730620220895,0.91601274,68438.0,68437.0,0.000819]
[1730620223945,0.91801274,68438.0,68437.0,0.000819]
[1730620224154,0.91601274,68438.0,68437.0,0.000819]
[1730620240973,0.83471274,68438.0,68437.0,0.000819]
[1730620245804,0.84830986,68438.0,68437.0,0.000819]
[1730620246923,0.89410986,68438.0,68437.0,0.000819]
[1730620247130,0.96910986,68438.0,68437.0,0.000819]
[1730620247946,0.95551274,68438.0,68437.0,0.000819]
[1730620249109,0.96911016,68438.0,68437.0,0.000819]
[1730620249582,1.01247515,68438.0,68437.0,0.000819]
[1730620250436,0.96911016,68438.0,68437.0,0.000819]
[1730620251719,0.97111016,68438.0,68437.0,0.000819]
[1730620251932,1.20444618,68438.0,68437.0,0.000819]
[1730620252153,1.11756628,68438.0,68437.0,0.000819]
[1730620252558,1.22597877,68438.0,68437.0,0.000819]
[1730620252772,1.11756628,68438.0,68437.0,0.000819]
[1730620253195,1.11556628,68438.0,68437.0,0.000819]
[1730620253654,1.11556628,68438.0,68419.0,0.078]
[1730620253655,0.0057,68431.0,68408.0,0.04373127]
[1730620253908,0.29376,68418.0,68407.0,0.21902447]
[1730620254116,0.87002249,68418.0,68407.0,0.21902447]
[1730620254319,1.03997402,68418.0,68407.0,0.21902447]
[1730620254518,1.03976174,68418.0,68407.0,0.21902447]
[1730620254750,1.03971232,68418.0,68407.0,0.21902447]
[1730620255180,0.95283842,68418.0,68407.0,0.21902447]
[1730620255383,0.80483,68418.0,68407.0,0.21902447]
[1730620255603,0.86495887,68418.0,68407.0,0.21902447]
[1730620255813,0.80483,68418.0,68407.0,0.21902447]
[1730620256031,0.86225653,68418.0,68407.0,0.21902447]
[1730620256436,0.97365574,68418.0,68407.0,0.21902447]
[1730620256612,0.97865574,68418.0,68407.0,0.21902447]
[1730620258029,0.97365574,68418.0,68407.0,0.21902447]
[1730620260736,0.84375574,68418.0,68407.0,0.21902447]
[1730620261089,0.69793,68418.0,68407.0,0.21902447]
[1730620266285,0.69793,68418.0,68414.0,0.076826]
[1730620267253,0.69793,68418.0,68414.0,0.000826]
[1730620267685,0.68393,68418.0,68414.0,0.000826]
[1730620268106,0.69793,68418.0,68414.0,0.000826]
[1730620268517,0.68393,68418.0,68414.0,0.000826]
[1730620268728,0.69793,68418.0,68414.0,0.000826]
[1730620268942,0.84375574,68418.0,68414.0,0.000826]
[1730620284752,0.69793,68418.0,68414.0,0.000826]
[1730620284903,0.68523,68418.0,68414.0,0.000826]
[1730620286099,0.68523,68418.0,68417.0,0.00736628]
[1730620286100,0.68593,68418.0,68417.0,0.00736628]
[1730620286346,0.68593,68418.0,68417.0,0.00736636]
[1730620287205,0.68793,68418.0,68417.0,0.00736636]
[1730620287844,0.83375574,68418.0,68417.0,0.00736636]
[1730620288409,0.84375574,68418.0,68417.0,0.000827]
[1730620289468,0.68793,68418.0,68417.0,0.000827]
[1730620291127,0.69293,68418.0,68417.0,0.000827]
[1730620294268,0.68793,68418.0,68417.0,0.000827]
[1730620294479,0.69293,68418.0,68417.0,0.000827]
[1730620301197,0.68593,68418.0,68417.0,0.000827]
[1730620301593,0.68593,68418.0,68417.0,0.00736607]
[1730620302418,0.65793,68418.0,68417.0,0.00736607]
[1730620302913,0.65993,68418.0,68417.0,0.00736607]
[1730620303297,0.67093,68418.0,68417.0,0.00736607]
[1730620304568,0.67093,68418.0,68417.0,0.00736443]
[1730620305632,0.67093,68418.0,68417.0,0.15316147]
[1730620307544,0.67093,68418.0,68417.0,0.16362176]
[1730620308318,0.67093,68418.0,68417.0,0.15316147]
[1730620308460,0.67093,68418.0,68417.0,0.16362222]
[1730620308872,0.52477,68418.0,68417.0,0.16362222]
[1730620310111,0.52477,68418.0,68417.0,0.16361678]
[1730620310560,0.52477,68418.0,68417.0,0.14662404]
[1730620311668,0.52477,68418.0,68417.0,0.16361723]
[1730620312050,0.52477,68418.0,68417.0,0.16753705]
[1730620312247,0.52477,68418.0,68417.0,0.16361341]
[1730620314204,0.52477,68418.0,68417.0,0.30977541]
[1730620315104,0.52477,68418.0,68417.0,0.16361341]
[1730620315872,0.52477,68418.0,68417.0,0.16361055]
[1730620321361,0.52407,68418.0,68417.0,0.30977255]
[1730620321564,0.52407,68418.0,68417.0,0.45627255]
[1730620321796,0.52407,68418.0,68417.0,0.53227255]
[1730620322317,0.52207,68418.0,68417.0,0.53227255]
[1730620322628,0.52307,68418.0,68417.0,0.53427255]
[1730620323037,0.51207,68418.0,68417.0,0.53427255]
[1730620323530,0.51207,68418.0,68417.0,0.52087538]
[1730620323531,0.51307,68418.0,68417.0,0.52087538]
[1730620324143,0.51307,68418.0,68417.0,0.56465357]
[1730620324588,0.51307,68418.0,68417.0,0.52087538]
[1730620327979,0.51307,68418.0,68417.0,0.55091872]
[1730620328548,0.48015944,68418.0,68417.0,0.55091872]
[1730620336352,0.48015944,68418.0,68417.0,0.58014872]
[1730620336558,0.48015944,68418.0,68417.0,0.55091872]
[1730620337983,0.48015944,68418.0,68417.0,0.55091667]
[1730620339945,0.48015944,68418.0,68417.0,0.55521667]
[1730620340159,0.43445289,68418.0,68417.0,0.74587236]
[1730620340943,0.001638,68426.0,68418.0,0.0043]
[1730620341153,0.001638,68426.0,68425.0,0.52134204]
[1730620341329,0.001638,68426.0,68425.0,0.55138333]
[1730620342149,0.002638,68426.0,68425.0,0.55138333]
[1730620342943,0.003638,68426.0,68425.0,0.56238333]
[1730620343159,0.003638,68426.0,68425.0,0.55138333]
[1730620343160,0.002638,68426.0,68425.0,0.55138333]
[1730620343315,0.001638,68426.0,68425.0,0.55138333]
[1730620343525,0.0007,68436.0,68426.0,0.1]
[1730620343787,0.21902447,68429.0,68428.0,0.2565557]
[1730620344004,0.0815,68429.0,68428.0,0.28659699]
[1730620344189,0.0815,68429.0,68428.0,0.27583833]
[1730620344440,0.0815,68429.0,68428.0,0.42197733]
[1730620344643,0.0815,68434.0,68429.0,0.292273]
[1730620344857,0.0815,68434.0,68430.0,0.27583833]
[1730620345067,0.0815,68434.0,68431.0,0.03004129]
[1730620345281,0.0815,68434.0,68430.0,0.24579704]
[1730620345282,0.0815,68434.0,68432.0,0.16277606]
[1730620345487,0.0815,68434.0,68433.0,0.01697902]
[1730620345719,0.0815,68434.0,68433.0,0.16277606]
[1730620346509,0.0825,68434.0,68433.0,0.17583833]
[1730620346708,0.0815,68434.0,68433.0,0.17583833]
[1730620346910,0.0815,68434.0,68433.0,0.16277606]
[1730620347145,0.0815,68434.0,68433.0,0.17583833]
[1730620347359,0.0007,68436.0,68433.0,0.32196633]
[1730620347559,0.0007,68436.0,68433.0,0.152128]
[1730620347560,0.005,68434.0,68433.0,0.152128]
[1730620347757,0.005,68434.0,68433.0,0.18181718]
[1730620347957,0.001,68434.0,68433.0,0.18181718]
[1730620348330,0.005,68434.0,68433.0,0.03568918]
[1730620348732,0.004,68434.0,68433.0,0.02968918]
[1730620349181,0.005,68434.0,68433.0,0.18181718]
[1730620349537,0.0007,68436.0,68433.0,0.17581718]
[1730620349753,0.0007,68436.0,68434.0,0.02968918]
[1730620349954,0.0007,68436.0,68435.0,0.02968918]
[1730620350154,0.146821,68436.0,68435.0,0.17548622]
[1730620350775,0.149821,68436.0,68435.0,0.17548622]
[1730620351254,0.146821,68436.0,68435.0,0.17548622]
[1730620351643,0.151821,68436.0,68435.0,0.17548622]
[1730620352052,0.152821,68436.0,68435.0,0.17548622]
[1730620352222,0.151821,68436.0,68435.0,0.17548622]
[1730620352739,0.151821,68436.0,68435.0,0.18048622]
[1730620353283,0.0057,68436.0,68435.0,0.18048622]
[1730620358220,0.0057,68436.0,68435.0,0.32661022]
[1730620358446,0.005,68436.0,68435.0,0.32661022]
[1730620358651,0.0007,68443.0,68442.0,0.146109]
[1730620358855,0.21902447,68445.0,68444.0,0.146104]
[1730620359061,0.0007,68446.0,68445.0,0.146102]
[1730620359259,0.0007,68446.0,68445.0,0.32158822]
[1730620359464,0.146084,68454.0,68445.0,0.32158822]
[1730620359465,0.21902447,68454.0,68447.0,0.146098]
[1730620359815,0.21902447,68454.0,68447.0,0.32451113]
[1730620360038,0.002338,68448.0,68447.0,0.32158947]
[1730620360464,0.001638,68448.0,68447.0,0.32158947]
[1730620360779,0.005638,68448.0,68447.0,0.32158947]
[1730620361995,0.001638,68448.0,68447.0,0.32158947]
[1730620362461,0.001638,68448.0,68447.0,0.33058947]
[1730620362670,0.001638,68448.0,68447.0,0.30089504]
[1730620362870,0.001638,68448.0,68447.0,0.32152896]
[1730620363075,0.002638,68448.0,68447.0,0.33152896]
[1730620363284,0.004338,68448.0,68447.0,0.33752896]
[1730620363906,0.003638,68448.0,68447.0,0.33752896]
[1730620364306,0.004338,68448.0,68447.0,0.33752896]
[1730620364565,0.003638,68448.0,68447.0,0.33752896]
[1730620366530,0.003638,68448.0,68447.0,0.30789504]
[1730620366660,0.003638,68448.0,68447.0,0.33750958]
[1730620368048,0.004338,68448.0,68447.0,0.33750958]
[1730620368218,0.003638,68448.0,68447.0,0.33750958]
[1730620370025,0.003638,68448.0,68447.0,0.33750868]
[1730620371710,0.004338,68448.0,68447.0,0.33750868]
[1730620372121,0.003638,68448.0,68447.0,0.33750868]
[1730620372353,0.004338,68448.0,68447.0,0.32463234]
[1730620372880,0.003638,68448.0,68447.0,0.32463234]
[1730620373288,0.003638,68448.0,68447.0,0.17853434]
[1730620374729,0.149734,68448.0,68447.0,0.17853434]
[1730620375012,0.195734,68448.0,68447.0,0.17853434]
[1730620375424,0.198434,68448.0,68447.0,0.16823413]
[1730620375625,0.198434,68448.0,68447.0,0.17853434]
[1730620375833,0.198434,68448.0,68447.0,0.16823413]
[1730620376530,0.198434,68448.0,68447.0,0.17853434]
[1730620378204,0.273634,68448.0,68447.0,0.17853434]
[1730620378622,0.278634,68448.0,68447.0,0.0327373]
[1730620378837,0.3649339,68448.0,68447.0,0.0327373]
[1730620379043,0.3649339,68448.0,68447.0,0.006]
[1730620379044,0.3639339,68448.0,68447.0,0.006]
[1730620379248,0.002,68438.0,68436.0,0.000819]
[1730620379437,0.146819,68437.0,68436.0,0.000819]
[1730620379611,0.146819,68437.0,68436.0,0.01756175]
[1730620381233,0.146819,68437.0,68436.0,0.000819]
[1730620381453,0.146819,68437.0,68436.0,0.01856351]
[1730620381782,0.146819,68437.0,68436.0,0.01756351]
[1730620382172,0.151819,68437.0,68436.0,0.02656351]
[1730620382437,0.150819,68437.0,68436.0,0.01756351]
[1730620382821,0.150819,68437.0,68436.0,0.01025886]
[1730620383479,0.150819,68437.0,68436.0,0.02056113]
[1730620383695,0.146819,68437.0,68436.0,0.16635817]
[1730620383922,0.151819,68437.0,68436.0,0.16735817]
[1730620384355,0.151819,68437.0,68436.0,0.15061604]
[1730620384585,0.151819,68437.0,68436.0,0.16735776]
[1730620384798,0.151819,68437.0,68436.0,0.15705483]
[1730620385482,0.153457,68437.0,68436.0,0.15705483]
[1730620386373,0.153457,68437.0,68436.0,0.15061604]
[1730620386572,0.153457,68437.0,68436.0,0.15705311]
[1730620387393,0.153457,68437.0,68436.0,0.15061604]
[1730620388011,0.152757,68437.0,68436.0,0.15061604]
[1730620388320,0.152757,68437.0,68436.0,0.16735448]
[1730620388455,0.153457,68437.0,68436.0,0.16735448]
[1730620389559,0.155457,68437.0,68436.0,0.16735448]
[1730620390595,0.155457,68437.0,68436.0,0.16091564]
[1730620390773,0.155457,68437.0,68436.0,0.16735235]
[1730620391172,0.154757,68437.0,68436.0,0.16735235]
[1730620391381,0.155457,68437.0,68436.0,0.16735235]
[1730620394268,0.155457,68437.0,68436.0,0.15705275]
[1730620394470,0.155457,68437.0,68436.0,0.15705186]
[1730620394938,0.155457,68437.0,68436.0,0.15705154]
[1730620399710,0.155457,68437.0,68436.0,0.16735407]
[1730620400113,0.155457,68437.0,68436.0,0.16735436]
[1730620406600,0.155457,68437.0,68436.0,0.15061604]
[1730620406814,0.155457,68437.0,68436.0,0.16739362]
[1730620408194,0.155457,68437.0,68436.0,0.18031383]
[1730620417312,0.210057,68437.0,68436.0,0.03451679]
[1730620417540,0.291757,68437.0,68436.0,0.02159658]
[1730620417777,0.291757,68437.0,68436.0,0.02161519]
[1730620418195,0.291757,68437.0,68436.0,0.01127876]
[1730620418393,0.291757,68437.0,68436.0,0.02161525]
[1730620421361,0.291757,68437.0,68436.0,0.02161031]
[1730620423202,0.155457,68437.0,68436.0,0.16740735]
[1730620423422,0.153457,68437.0,68436.0,0.16740735]
[1730620424049,0.155457,68437.0,68436.0,0.16740735]
[1730620425331,0.155457,68437.0,68436.0,0.16740755]
[1730620426587,0.153457,68437.0,68436.0,0.19663755]
[1730620426755,0.155457,68437.0,68436.0,0.16740755]
[1730620428354,0.153457,68437.0,68436.0,0.16740755]
[1730620428783,0.153457,68437.0,68436.0,0.15061604]
[1730620429147,0.153457,68437.0,68436.0,0.16740823]
[1730620429350,0.007338,68437.0,68436.0,0.16740823]
[1730620429556,0.007338,68437.0,68436.0,0.18032701]
[1730620430190,0.203057,68437.0,68436.0,0.18032701]
[1730620430859,0.203057,68437.0,68436.0,0.02161119]
[1730620431032,0.205057,68437.0,68436.0,0.02161119]
[1730620432401,0.205057,68437.0,68436.0,0.004819]
[1730620432781,0.205057,68437.0,68436.0,0.0216127]
[1730620436375,0.205057,68437.0,68436.0,0.02161345]
[1730620437859,0.205057,68437.0,68436.0,0.03453417]
[1730620439890,0.205057,68437.0,68436.0,0.004819]
[1730620440094,0.205057,68437.0,68436.0,0.03453534]
[1730620441766,0.205057,68437.0,68436.0,0.03453549]
[1730620442344,0.205057,68437.0,68436.0,0.004819]
[1730620442550,0.205057,68437.0,68436.0,0.03453557]
[1730620442965,0.153457,68437.0,68436.0,0.18033261]
[1730620444893,0.285257,68437.0,68436.0,0.18033261]
[1730620446762,0.285257,68437.0,68436.0,0.03453557]
[1730620446997,0.285257,68437.0,68436.0,0.02161447]
[1730620447404,0.40630607,68437.0,68436.0,0.02161447]
[1730620447607,0.290257,68437.0,68436.0,0.02161447]
[1730620449421,0.33880874,68437.0,68436.0,0.02161447]
[1730620449835,0.295257,68437.0,68436.0,0.01127846]
[1730620450037,0.36058461,68437.0,68436.0,0.01127846]
[1730620450463,0.50388896,68437.0,68436.0,0.01127846]
[1730620451337,0.58744249,68437.0,68436.0,0.004819]
[1730620451557,0.50386036,68437.0,68436.0,0.004819]
[1730620453539,0.295257,68437.0,68436.0,0.004819]
[1730620454986,0.33877423,68437.0,68436.0,0.004819]
[1730620455411,0.295257,68437.0,68436.0,0.004819]
[1730620456899,0.33877423,68437.0,68436.0,0.004819]
[1730620458780,0.290257,68437.0,68436.0,0.004819]
[1730620458980,0.295257,68437.0,68436.0,0.004819]
[1730620466201,0.290257,68437.0,68436.0,0.004819]
[1730620466537,0.295257,68437.0,68436.0,0.004819]
[1730620467384,0.290257,68437.0,68436.0,0.004819]
[1730620467514,0.295257,68437.0,68436.0,0.004819]
[1730620469048,0.31931654,68437.0,68436.0,0.004819]
[1730620469450,0.31431654,68437.0,68436.0,0.004819]
[1730620470167,0.290257,68437.0,68436.0,0.004819]
[1730620477423,0.290257,68437.0,68436.0,0.01127758]
[1730620477831,0.290257,68437.0,68436.0,0.004819]
[1730620478044,0.290257,68437.0,68436.0,0.01127755]
[1730620478252,0.290257,68437.0,68436.0,0.004819]
[1730620478463,0.290257,68437.0,68436.0,0.01127891]
[1730620480174,0.290257,68437.0,68436.0,0.004819]
[1730620480421,0.290257,68437.0,68436.0,0.01127895]
[1730620481482,0.290257,68437.0,68436.0,0.004819]
[1730620481694,0.290257,68437.0,68436.0,0.01127899]
[1730620484809,0.290257,68437.0,68436.0,0.01127941]
[1730620485020,0.290257,68437.0,68436.0,0.004819]
[1730620485229,0.290257,68437.0,68436.0,0.01127938]
[1730620487055,0.33375879,68437.0,68436.0,0.004819]
[1730620487255,0.290257,68437.0,68436.0,0.004819]
[1730620487387,0.33375879,68437.0,68436.0,0.004819]
[1730620487599,0.36050968,68437.0,68436.0,0.004819]
[1730620489017,0.31562635,68437.0,68436.0,0.004819]
[1730620489227,1.06248083,68437.0,68436.0,0.004819]
[1730620492338,1.0627216,68437.0,68436.0,0.004819]
[1730620492571,0.97565416,68437.0,68436.0,0.004819]
[1730620494146,1.08448847,68437.0,68436.0,0.004819]
[1730620494600,0.97565416,68437.0,68436.0,0.004819]
[1730620495604,0.97065416,68437.0,68436.0,0.003819]
[1730620496038,0.97565416,68437.0,68436.0,0.004819]
[1730620496245,0.97565416,68437.0,68436.0,0.001819]
[1730620496457,0.97565416,68437.0,68436.0,0.004819]
[1730620496819,0.97504596,68437.0,68436.0,0.001819]
[1730620497365,0.97504596,68437.0,68436.0,0.000819]
[1730620497566,0.98704596,68437.0,68436.0,0.000819]
[1730620504884,0.98743078,68437.0,68436.0,0.000819]
[1730620505503,0.98736382,68437.0,68436.0,0.000819]
[1730620506857,1.09616499,68437.0,68436.0,0.000819]
[1730620510798,0.96699447,68437.0,68436.0,0.000819]
[1730620511003,1.07579564,68437.0,68436.0,0.000819]
[1730620514795,0.96699447,68437.0,68436.0,0.000819]
[1730620514949,0.96684346,68437.0,68436.0,0.000819]
[1730620515371,1.07561578,68437.0,68436.0,0.000819]
[1730620515618,1.22144152,68437.0,68436.0,0.000819]
[1730620515771,1.1126692,68437.0,68436.0,0.000819]
[1730620516178,1.22144036,68437.0,68436.0,0.000819]
[1730620518867,1.09164036,68437.0,68436.0,0.000819]
[1730620519028,0.83704346,68437.0,68436.0,0.000819]
[1730620519642,0.8373386,68437.0,68436.0,0.000819]
[1730620523445,0.94611401,68437.0,68436.0,0.000819]
[1730620524897,0.8373386,68437.0,68436.0,0.000819]
[1730620525528,0.94613155,68437.0,68436.0,0.000819]
[1730620528525,0.8373386,68437.0,68436.0,0.000819]
[1730620528653,0.94615317,68437.0,68436.0,0.000819]
[1730620528917,0.8373386,68437.0,68436.0,0.000819]
[1730620529949,0.9461602,68437.0,68436.0,0.000819]
[1730620530321,0.8373386,68437.0,68436.0,0.000819]
[1730620530523,0.94617041,68437.0,68436.0,0.000819]
[1730620530731,0.8373386,68437.0,68436.0,0.000819]
[1730620530930,0.94616851,68437.0,68436.0,0.000819]
[1730620531366,0.94617071,68437.0,68436.0,0.000819]
[1730620531597,0.94617958,68437.0,68436.0,0.000819]
[1730620531806,0.94618009,68437.0,68436.0,0.000819]
[1730620532019,0.8373386,68437.0,68436.0,0.000819]
[1730620533263,1.10616434,68437.0,68436.0,0.000819]
[1730620535629,1.10816434,68437.0,68436.0,0.000819]
[1730620542713,0.9623386,68437.0,68436.0,0.000819]
[1730620547471,0.96280828,68437.0,68436.0,0.000819]
[1730620549421,0.96780828,68437.0,68436.0,0.000819]
[1730620557100,0.96580828,68437.0,68436.0,0.000819]
[1730620557303,0.96780828,68437.0,68436.0,0.000819]
[1730620558500,1.11363402,68437.0,68436.0,0.000819]
[1730620559621,1.11163402,68437.0,68436.0,0.000819]
[1730620559818,0.88290828,68437.0,68436.0,0.000819]
[1730620560190,0.88490828,68437.0,68436.0,0.000819]
[1730620563200,0.88290828,68437.0,68436.0,0.000819]
[1730620564038,0.83780828,68437.0,68436.0,0.000819]
[1730620564495,0.83753893,68437.0,68436.0,0.000819]
[1730620566761,0.83709367,68437.0,68436.0,0.000819]
[1730620573844,0.83723041,68437.0,68436.0,0.000819]
[1730620578085,0.83223041,68437.0,68436.0,0.000819]
[1730620578449,0.83725298,68437.0,68436.0,0.000819]
[1730620582124,0.94610832,68437.0,68436.0,0.000819]
[1730620582342,0.83725298,68437.0,68436.0,0.000819]
[1730620582972,0.94610572,68437.0,68436.0,0.000819]
[1730620583174,0.83725298,68437.0,68436.0,0.000819]
[1730620584432,0.83225298,68437.0,68436.0,0.000819]
[1730620584643,0.91863793,68437.0,68436.0,0.000819]
[1730620584817,0.91976672,68437.0,68436.0,0.000819]
[1730620585017,0.83268313,68437.0,68436.0,0.000819]
[1730620585223,0.74919133,68437.0,68436.0,0.000819]
[1730620586304,0.683877,68437.0,68436.0,0.000819]
[1730620586642,0.74919133,68437.0,68436.0,0.000819]
[1730620587095,0.683877,68437.0,68436.0,0.000819]
[1730620589273,0.7273958,68437.0,68436.0,0.000819]
[1730620589505,0.683877,68437.0,68436.0,0.000819]
[1730620589739,0.74919133,68437.0,68436.0,0.000819]
[1730620590759,0.94201707,68437.0,68436.0,0.000819]
[1730620590990,1.11219748,68437.0,68436.0,0.000819]
[1730620591190,1.03011389,68437.0,68436.0,0.000819]
[1730620591954,0.88170274,68437.0,68436.0,0.000819]
[1730620592161,1.02966794,68437.0,68436.0,0.000819]
[1730620592580,1.02466794,68437.0,68436.0,0.000819]
[1730620592783,1.02966794,68437.0,68436.0,0.000819]
[1730620596568,1.10756794,68437.0,68436.0,0.000819]
[1730620600960,1.11256794,68437.0,68436.0,0.000819]
[1730620601168,1.35836498,68437.0,68436.0,1e-06]
[1730620601373,1.40279768,68437.0,68436.0,1e-06]
[1730620601931,1.53331268,68437.0,68436.0,1e-06]
[1730620606036,1.40279768,68437.0,68436.0,1e-06]
[1730620606977,1.39079768,68437.0,68436.0,1e-06]
[1730620607134,1.39979768,68437.0,68436.0,1e-06]
[1730620607539,1.41279768,68437.0,68436.0,1e-06]
[1730620607732,1.39879768,68437.0,68436.0,1e-06]
[1730620607937,1.41279768,68437.0,68436.0,1e-06]
[1730620608155,0.0177,68427.0,68426.0,0.000819]
[1730620608410,0.88710174,68427.0,68426.0,0.000819]
[1730620608588,1.17985031,68427.0,68426.0,0.000819]
[1730620609288,1.09290957,68427.0,68426.0,0.000819]
[1730620609710,1.09226811,68427.0,68426.0,0.000819]
[1730620610299,0.95998674,68427.0,68426.0,0.000819]
[1730620610605,0.96698674,68427.0,68426.0,0.001819]
[1730620611221,1.03217242,68427.0,68426.0,0.001819]
[1730620613474,1.03417242,68427.0,68426.0,0.001819]
[1730620613657,1.03217242,68427.0,68426.0,0.001819]
[1730620615303,1.03414344,68427.0,68426.0,0.001819]
[1730620615511,1.03214344,68427.0,68426.0,0.001819]
[1730620619347,0.96698674,68427.0,68426.0,0.001819]
[1730620619986,1.03212522,68427.0,68426.0,0.001819]
[1730620620997,1.03412522,68427.0,68426.0,0.001819]
[1730620621215,1.03412311,68427.0,68426.0,0.001819]
[1730620621425,0.96898674,68427.0,68426.0,0.001819]
[1730620622082,1.66639477,68427.0,68426.0,1e-06]
[1730620622463,1.36051899,68427.0,68426.0,1e-06]
[1730620622600,1.46908313,68427.0,68426.0,1e-06]
[1730620623210,1.36051899,68427.0,68426.0,1e-06]
[1730620623821,1.38340295,68427.0,68426.0,1e-06]
[1730620624032,1.36940295,68427.0,68426.0,1e-06]
[1730620624436,0.20486,68418.0,68414.0,0.004346]
[1730620624654,0.86207704,68418.0,68414.0,0.004346]
[1730620624905,0.97905614,68418.0,68414.0,0.004346]
[1730620625678,0.67028,68418.0,68414.0,0.004346]
[1730620626857,0.68028,68418.0,68414.0,0.004346]
[1730620627059,0.67528,68418.0,68414.0,0.004346]
[1730620640360,0.67458,68418.0,68416.0,0.0473]
[1730620640573,0.67528,68418.0,68416.0,0.0473]
[1730620640794,0.67528,68418.0,68417.0,0.00728687]
[1730620642739,0.67528,68418.0,68417.0,0.13728687]
[1730620642928,0.67458,68418.0,68417.0,0.1372867]
[1730620643202,0.67528,68418.0,68417.0,0.130827]
[1730620643621,0.67528,68418.0,68417.0,0.13728676]
[1730620644810,0.151866,68415.0,68414.0,0.004346]
[1730620645013,0.153866,68415.0,68414.0,0.004346]
[1730620645430,0.665286,68415.0,68414.0,0.004346]
[1730620645921,0.672286,68415.0,68414.0,0.004346]
[1730620646547,0.672286,68415.0,68414.0,0.005346]
[1730620653531,0.81811174,68415.0,68414.0,0.005346]
[1730620654058,0.672286,68415.0,68414.0,0.005346]
[1730620657105,0.672286,68415.0,68414.0,0.01182653]
[1730620657503,0.672286,68415.0,68414.0,0.005346]
[1730620657681,0.672286,68415.0,68414.0,0.01182674]
[1730620661125,0.672286,68415.0,68414.0,0.01182758]
[1730620664532,0.672286,68415.0,68414.0,0.01182843]
[1730620677814,0.78647328,68415.0,68414.0,0.01182843]
[1730620678582,0.672286,68415.0,68414.0,0.01182843]
[1730620685498,0.672286,68415.0,68414.0,0.02220562]
[1730620685756,0.672286,68415.0,68414.0,0.01182843]
[1730620686683,0.672286,68415.0,68414.0,0.02220607]
[1730620688326,0.672286,68415.0,68414.0,0.005346]
[1730620688531,0.70437053,68415.0,68414.0,0.02220808]
[1730620688937,0.70367053,68415.0,68414.0,0.02220808]
[1730620689138,0.70437053,68415.0,68414.0,0.02220808]
[1730620689948,0.70367053,68415.0,68414.0,0.02220808]
[1730620690561,0.70437053,68415.0,68414.0,0.02220808]
[1730620692138,0.70437053,68415.0,68414.0,0.02220465]
[1730620692349,0.672286,68415.0,68414.0,0.01182976]
[1730620692498,0.672286,68415.0,68414.0,0.005346]
[1730620692699,0.671586,68415.0,68414.0,0.005346]
[1730620692951,0.672286,68415.0,68414.0,0.005346]
[1730620694797,0.672286,68415.0,68414.0,0.01182968]
[1730620694968,0.672286,68415.0,68414.0,0.02220444]
[1730620697110,0.51842,68415.0,68414.0,0.15114304]
[1730620697328,0.664586,68415.0,68414.0,0.19904304]
[1730620697539,0.51842,68415.0,68414.0,0.19904304]
[1730620697747,0.664586,68415.0,68414.0,0.19904304]
[1730620700125,0.664586,68415.0,68414.0,0.21589501]
[1730620700797,0.51842,68415.0,68414.0,0.21589501]
[1730620702939,0.51842,68415.0,68414.0,0.22885694]
[1730620703401,0.51842,68415.0,68414.0,0.21589501]
[1730620703642,0.51842,68415.0,68414.0,0.37502494]
[1730620704103,0.51842,68415.0,68414.0,0.22885694]